﻿Department family,Entity,Date,Expense type,Expense area,Supplier,Transaction number,Amount,Description,Supplier Postcode
Families & Specialist Services,Radiology,04/10/2023,Contractual Clinical Services,Rad General,4 Ways Healthcare Ltd,4WHC/05240510,"32,376.78 ",Teleradiology Reporting,HP2 7BF
Families & Specialist Services,Radiology,27/10/2023,Contractual Clinical Services,Rad General,4 Ways Healthcare Ltd,4WHC/06240208,"30,656.05 ",Teleradiology Reporting,HP2 7BF
Balance Sheet,L2 Current Assets,01/11/2023,Finished Processed Goods,Stock & Work In Progress,Aah Pharmaceuticals Ltd,3178751U,"-25,125.60 ",Pharmaceutical purchase,CV2 2ZG
Balance Sheet,L2 Current Assets,13/10/2023,Finished Processed Goods,Stock & Work In Progress,Aah Pharmaceuticals Ltd,67265005Q,"25,625.74 ",Pharmaceutical purchase,CV2 2ZG
Balance Sheet,L2 Current Assets,06/10/2023,Finished Processed Goods,Stock & Work In Progress,Alliance Healthcare Distribution Ltd,F39751766,"73,939.80 ",Pharmaceutical purchase,KT9 1SN
Balance Sheet,L2 Current Assets,13/10/2023,Finished Processed Goods,Stock & Work In Progress,Alliance Healthcare Distribution Ltd,F39F56927,"67,459.81 ",Pharmaceutical purchase,KT9 1SN
Balance Sheet,L2 Current Assets,27/10/2023,Finished Processed Goods,Stock & Work In Progress,Alliance Healthcare Distribution Ltd,F39S56016,"67,491.24 ",Pharmaceutical purchase,KT9 1SN
CHS Estates,L2 Estates,27/10/2023,Water,Estates Operations,Anglian Water Business National t/a Wave Utilities,1053414,"44,592.03 ",Mains water HUDDERSFIELD ROYAL INFIRMARY April 2023- March 2024,DH1 5FJ
CHS Estates,L2 Estates,27/10/2023,Water,Estates Operations,Anglian Water Business National t/a Wave Utilities,1053414,"39,705.51 ",Mains water Calderdale Royal Hospital April 2023- March 2024 ,DH1 5FJ
CHS Estates,L2 Estates,27/10/2023,Water,Estates Operations,Anglian Water Business National t/a Wave Utilities,1053414,"2,509.37 ",Mains water PMU/ HPS April 2023-March 2024,DH1 5FJ
CHS Facilities,L2 Facilities,27/10/2023,Water,Equipment Loan,Anglian Water Business National t/a Wave Utilities,1053414,250.32 ,Mains water Elland April 2023-March 2024,DH1 5FJ
CHS Estates,L2 Estates,27/10/2023,Water,Estates Properties,Anglian Water Business National t/a Wave Utilities,1053414,71.48 ,Mains water Acre Mill April 2023- March 2024,DH1 5FJ
CHS Estates,L2 Estates,27/10/2023,Water,Estates Properties,Anglian Water Business National t/a Wave Utilities,1053414,101.44 ,Mains water Beechwood April 2023- March 2024,DH1 5FJ
CHS Estates,L2 Estates,27/10/2023,Water,Estates Properties,Anglian Water Business National t/a Wave Utilities,1053414,340.93 ,Mains water Broad Street April 2023- March 2024,DH1 5FJ
CHS Estates,L2 Estates,27/10/2023,Water,Estates Operations,Anglian Water Business National t/a Wave Utilities,1054399,"26,209.02 ",Mains water HUDDERSFIELD ROYAL INFIRMARY April 2023- March 2024,DH1 5FJ
CHS Estates,L2 Estates,27/10/2023,Water,Estates Operations,Anglian Water Business National t/a Wave Utilities,1054399,"20,261.14 ",Mains water Calderdale Royal Hospital April 2023- March 2024 ,DH1 5FJ
CHS Estates,L2 Estates,27/10/2023,Water,Estates Operations,Anglian Water Business National t/a Wave Utilities,1054399,"2,552.28 ",Mains water PMU/ HPS April 2023-March 2024,DH1 5FJ
CHS Facilities,L2 Facilities,27/10/2023,Water,Equipment Loan,Anglian Water Business National t/a Wave Utilities,1054399,311.07 ,Mains water Elland April 2023-March 2024,DH1 5FJ
CHS Estates,L2 Estates,27/10/2023,Water,Estates Properties,Anglian Water Business National t/a Wave Utilities,1054399,78.63 ,Mains water Acre Mill April 2023- March 2024,DH1 5FJ
CHS Estates,L2 Estates,27/10/2023,Water,Estates Properties,Anglian Water Business National t/a Wave Utilities,1054399,101.44 ,Mains water Beechwood April 2023- March 2024,DH1 5FJ
CHS Estates,L2 Estates,27/10/2023,Water,Estates Properties,Anglian Water Business National t/a Wave Utilities,1054399,233.68 ,Mains water Broad Street April 2023- March 2024,DH1 5FJ
CHS Estates,L2 Estates,27/10/2023,Water,Estates Operations,Anglian Water Business National t/a Wave Utilities,1054399,23.20 ,Mains water HUDDERSFIELD ROYAL INFIRMARY April 2023- March 2024,DH1 5FJ
CHS Balance Sheet,Fixed Assets,06/10/2023,Additions - Assets Under Construction,Tangible,Atherden Fuller Leng Ltd,63253,"26,070.00 ",BROADSTREET CDC - FEE FOR ARCHITECT FEES STAGES 1-6 DESIGN AND TENDER DOCUMENT AS PER YOUR QUOTE,M2 3NQ
CHS Balance Sheet,Fixed Assets,06/10/2023,Additions - Assets Under Construction,Tangible,Atherden Fuller Leng Ltd,63254,"52,971.60 ",BROADSTREET CDC - FEE ESTIMATE FOR THE DESIGN OF THE PROPOSED NEW CDC AS BROADSTREET HC AS PER YOUR QUOTE ,M2 3NQ
CHS Balance Sheet,Fixed Assets,27/10/2023,Additions - Assets Under Construction,Tangible,Atherden Fuller Leng Ltd,63294,"42,300.00 ",BROADSTREET CDC - FEE ESTIMATE FOR THE DESIGN OF THE PROPOSED NEW CDC AS BROADSTREET HC AS PER YOUR QUOTE ,M2 3NQ
CHS Estates,L2 Estates,01/11/2023,Contract : Other External,Medical Physics,B Braun Sterilog (Yorkshire) Ltd,328747071,"196,851.94 ",Decontamination Services for Surgical & Podiatry,S35 2PW
Balance Sheet,L2 Current Assets,04/10/2023,Finished Processed Goods,Stock & Work In Progress,Bayer Plc,824C515743,"27,373.68 ",Pharmaceutical purchase,RG2 6AD
Balance Sheet,L2 Current Assets,06/10/2023,Finished Processed Goods,Stock & Work In Progress,Bayer Plc,824C516481,"27,373.68 ",Pharmaceutical purchase,RG2 6AD
Balance Sheet,L2 Current Assets,13/10/2023,Finished Processed Goods,Stock & Work In Progress,Bayer Plc,824C517830,"27,373.68 ",Pharmaceutical purchase,RG2 6AD
Balance Sheet,L2 Current Assets,20/10/2023,Finished Processed Goods,Stock & Work In Progress,Bayer Plc,824C520409,"114,057.00 ",Pharmaceutical purchase,RG2 6AD
Balance Sheet,L2 Current Assets,25/10/2023,Finished Processed Goods,Stock & Work In Progress,Bayer Plc,824C520974,"27,373.68 ",Pharmaceutical purchase,RG2 6AD
Balance Sheet,L2 Current Assets,01/11/2023,Finished Processed Goods,Stock & Work In Progress,Bayer Plc,824C522139,"27,373.68 ",Pharmaceutical purchase,RG2 6AD
Families & Specialist Services,Pathology,27/10/2023,Laboratory Test Kits,Microbiology,Becton Dickinson UK Ltd,230080790,"35,346.48 ",Managed Service Contract (NON-CoVID) for 2023-2024,RG41 5TS
CHS Estates,L2 Estates,11/10/2023,Med Surg Eqpt General,Medical Physics,Bluespier International Ltd,SIN-03294,"38,056.80 ",2 of 3 Year Contract - C&H Bluespier Theatre Management System Agreement Commencing - 23rd September 2023 - 22nd September 2024,WR9 7ER
Recharges,Recharges,27/10/2023,Healthcare From Foundation Trusts,Recharges,Bradford Teaching Hospitals NHS Foundation Trust,324868,"118,442.59 ",Provider to Provider charge as per original schedule 22.23 April 23 toJun 23 Q1,LS11 1HP
Recharges,Recharges,27/10/2023,Healthcare From Foundation Trusts,Recharges,Bradford Teaching Hospitals NHS Foundation Trust,324869,"118,442.59 ",Provider to Provider charge as per original schedule 22.23 Jul 23 toSep 23 Q2,LS11 1HP
Balance Sheet,L2 Current Assets,01/11/2023,Finished Processed Goods,Stock & Work In Progress,Bristol Myers Squibb Pharmaceuticals Ltd,100729426,"41,461.80 ",Pharmaceutical purchase,CH4 9QW
CHS Facilities,L2 Facilities,25/10/2023,Rent,Equipment Loan,BW SIPP Trustees Ltd,INV-1298,"30,550.80 ",Back dated Rent and Repairs for Loan Stores from 20.3.23 to 24.12.23,HX2 6BW
Surgery & Anaesthetics,Surgical Divisional Support,20/10/2023,Healthcare From Commercial Sector,Elective Recovery,Calderdale And Huddersfield Orthopaedic Partnership Llp,INV-0096,"64,751.62 ",Provision of Orthopaedic and/or Specialty Healthcare Services to cover 2023/2024,LS8 2JH
Surgery & Anaesthetics,Surgical Divisional Support,20/10/2023,Healthcare From Commercial Sector,Elective Recovery,Calderdale And Huddersfield Orthopaedic Partnership Llp,INV-0097,"75,000.00 ",Provision of Orthopaedic and/or Specialty Healthcare Services to cover 2023/2025,LS8 2JH
Surgery & Anaesthetics,Surgical Divisional Support,20/10/2023,Healthcare From Commercial Sector,Elective Recovery,Calderdale And Huddersfield Orthopaedic Partnership Llp,INV-0098,"35,940.54 ",Provision of Orthopaedic and/or Specialty Healthcare Services to cover 2023/2026,LS8 2JH
Corporate Services,Service Performance,20/10/2023,Contract : Other External,Pfi,Calderdale Hospital Spc Ltd,CASI120,"3,449,836.54 ",PFI contract monthly payment,M20 2YY
Corporate Services,Service Performance,13/10/2023,External Contracts : Other Hotel Services,Pfi,Calderdale Hospital Spc Ltd,CASI121,"52,205.12 ",Additional variations,M20 2YY
Corporate Services,Service Performance,13/10/2023,Minor Works,Pfi,Calderdale Hospital Spc Ltd,CASI125,"83,502.61 ",New Works,M20 2YY
Corporate Services,Service Performance,13/10/2023,Minor Works,Pfi,Calderdale Hospital Spc Ltd,CASI126,"27,047.84 ",New Works,M20 2YY
Corporate Services,Service Performance,01/11/2023,Rates,Properties,Calderdale Metropolitan Borough Council,25202391017613,"77,440.00 ",Council Tax for Calderdale Royal Hospital for 23/24,HX1 1TP
Corporate Services,Service Performance,11/10/2023,Rates,Properties,Calderdale Metropolitan Borough Council,25202391017613,"77,440.00 ",Council Tax for Calderdale Royal Hospital for 23/24,HX1 1TP
CHS Facilities,L2 Facilities,13/10/2023,Home Loans,Equipment Loan,Calderdale Metropolitan Borough Council,IN23105542,"88,100.00 ",CHFT contribution to equipment on ICES Loanstore budget 01/04/2023 to 31/03/2024,HX1 1TP
Families & Specialist Services,Womens,11/10/2023,Healthcare From Commercial Sector,Gynaecology,CARE Leeds,500006,"30,894.78 ",IVF Services,LS14 6UH
Families & Specialist Services,Womens,11/10/2023,Healthcare From Commercial Sector,Gynaecology,CARE Leeds,500007,"33,704.95 ",IVF Services,LS14 6UH
Families & Specialist Services,Womens,11/10/2023,Healthcare From Commercial Sector,Gynaecology,CARE Leeds,500011,"38,648.50 ",IVF Services,LS14 6UH
Families & Specialist Services,Womens,11/10/2023,Healthcare From Commercial Sector,Gynaecology,CARE Leeds,500012,"31,897.06 ",IVF Services,LS14 6UH
Families & Specialist Services,Womens,27/10/2023,Healthcare From Commercial Sector,Gynaecology,CARE Leeds,500013,"29,844.00 ",IVF Services,LS14 6UH
Families & Specialist Services,Womens,27/10/2023,Healthcare From Commercial Sector,Gynaecology,CARE Leeds,500016,"34,634.00 ",IVF Services,LS14 6UH
Families & Specialist Services,Womens,27/10/2023,Healthcare From Commercial Sector,Gynaecology,CARE Leeds,500018,"30,836.00 ",IVF Services,LS14 6UH
Corporate Services,Corporate Services,05/10/2023,Professional Fees,Corporate Services,Care Quality Commission,43323876,"35,636.00 ",Annual Fee: NHS Trusts,LS11 1HP
Health Informatics,Modernisation Programme,06/10/2023,Computer Software / License Fees,Modernisation Programme,Cerner Ltd,102285945,"63,112.80 ",Cerner Table 12: RHO Recurring Charges. Monthly  commencing from the Effective Date and continuing until the end of the Term £52 594 monthly for 2023.,W2 1AF
Health Informatics,Modernisation Programme,06/10/2023,Computer Software / License Fees,Modernisation Programme,Cerner Ltd,102286024,"38,400.00 ",Cerner CCN053 Nuance Drage medical one speech recognition  shared computing services monthly recuring charge £32 000 for 2023. to match to order rwyr400053037,W2 1AF
Health Informatics,Modernisation Programme,13/10/2023,Computer Software / License Fees,Modernisation Programme,Cerner Ltd,102293976,"39,556.80 ",Cerner CCN 054 - CHFT imprivata Mobile device access and G3 test appliance - subscription services monthly £2747 paid annually £32 964 for 2023. to match to order rwyf400077473,W2 1AF
Families & Specialist Services,Pathology,04/10/2023,Laboratory Test Kits,Microbiology,Chrystal Consulting Ltd,63344,"129,887.71 ",Diasorin Managed Service Contract,M22 5HQ
Families & Specialist Services,Pathology,18/10/2023,Laboratory Test Kits,Microbiology,Chrystal Consulting Ltd,63659,"129,887.71 ",Diasorin Managed Service Contract,M22 5HQ
Families & Specialist Services,Childrens & Young Persons Services,06/10/2023,Med Surg Eqpt General,Nicu,Clevermed Ltd,INV-0766,"29,658.00 ",BadgerNet Annual Contract Charges - Neonatal EPR - 2023 - 2026. ,EH3 9QG
Surgery & Anaesthetics,Surgical Divisional Support,06/10/2023,Training Expenses,Support Services,CMR Surgical Ltd,INV-UK01010669,"42,000.00 ",Team Training Sessions - 2 x £35 000.00,CB24 9NG
Balance Sheet,Fixed Assets,27/10/2023,Additions - Assets Under Construction,CAPITAL (Reconfig HRI),Crowther & Shaw Ltd,INV72516,"42,273.60 ",HUDDERSFIELD ROYAL INFIRMARY - FORMER TRUST HQ - SUPPLY AND INSTALLATION OF VRF HEATING AND COOOLING - FUJITSU VRF SYSTEM TO PROVIDE HEATING AND COOLING WITH OFFICES AS PER YOUR QUOTE ,HD1 5DG
Balance Sheet,L2 Current Assets,06/10/2023,Finished Processed Goods,Stock & Work In Progress,Csl Behring Uk Ltd,994059943,"49,432.50 ",Pharmaceutical purchase,RH16 1AH
CHS Estates,L2 Estates,25/10/2023,Med Surg Eqpt Mtce Contracts,Management Estates,De Soutter Medical Ltd,0000648836,"50,076.00 ",Maintenance for Orthodrive Modular Rotary Saws and ALL associated Equipment at Calderdale Royal Hospital & HUDDERSFIELD ROYAL INFIRMARY - as per EBME asset list.Agreement Commencing - 1st April 2023 - 31st March 2024,HP22 5WF
Families & Specialist Services,Pathology,04/10/2023,Computer Maintenance,Path General,DH OpCo UK Ltd,HGB-SI23000456,"33,634.21 ",Calderdale Full DR for the period 01/12/22 - 30/11/23,LS1 4BA
CHS Estates,L2 Estates,13/10/2023,Computer Software / License Fees,Management Estates,DH OpCo UK Ltd,HGB-SI23000517,"29,849.54 ",Provision & support of the i.Labs system. Year 3: 01/01/2023 – 31/12/ 2023 payment terms: quarterly in advance As per the terms and conditions of the NHS SBS Framework reference,GU11 1PZ
Families & Specialist Services,Pharmacy,04/10/2023,Computer Software / License Fees,Pharm Gen,Egton Medical Information Systems Ltd,SINV00014223,"36,260.10 ",EMIS 10:21 Bundle - Core Pharmacy Upgrade as per attached quote. ,LS19 6BA
Health Informatics,Corporate And Operations,04/10/2023,Computer Software / License Fees,It Support,Egton Medical Information Systems Ltd,FIN000509,"60,000.00 ",Concentric Digital Consent invoice period 24.12.22 - 23.12.23 . Remote consent and personalised information supporting informed  shared decisions £50 000 Net,LS19 6BA
Balance Sheet,Fixed Assets,11/10/2023,Additions - Assets Under Construction,CAPITAL (Reconfig HRI),Electrical Projects & Installations Ltd,287,"31,036.50 ",ORMER TRUST OFFICES - SUPPLY & INSTALLATION OF ELECTRICAL INFRASTRUCTURE  REWIRE SUPPLIED LED LIGHT FITTINGS  ERMERGCY LIGHTING AND FIRE DETECTION.  INSTALL NEW DISTRIBUTION BOARDS AS PER YOUR QUOTE ,HD5 9BG
Recharges,Recharges,18/10/2023,Med Surg Eqpt Hire,Recharges,"Five Mobility Ltd		",14931,"34,329.60 ",HIRE OF SPECIALIST THERAPY EQUIPMENT CONSUMABLES FROM FIVE MOBILITY ,YO8 8QQ
Balance Sheet,Fixed Assets,27/10/2023,Additions - Assets Under Construction,Capital (Fss),Fujifilm UK Limited,9333344423,"90,000.00 ",Radiology Replacement detectors (x3) purchased via capital funds.,MK42 0LF
Medical Division,Medical Specialities,18/10/2023,Contractual Clinical Services,Gastroenterology,Gutcare.Org Ltd,51,"32,350.00 ",Insourcing Gastroenterology Respiratory and Cardiology,RM11 2EZ
Medical Division,Medical Specialities,01/11/2023,Contractual Clinical Services,Gastroenterology,Gutcare.Org Ltd,64B,"35,562.50 ",Insourcing Gastroenterology Respiratory and Cardiology,RM11 2EZ
Balance Sheet,Fixed Assets,20/10/2023,Additions - Assets Under Construction,CAPITAL (Reconfig HRI),Integrated Health Projects,23100015,"310,891.27 ", ED - VARIATION TO BRING GMP INLINE WITH FORECAST,WD24 4WW
CHS Estates,L2 Estates,04/10/2023,Rates,Estates Operations,Kirklees Council,969286425_2023,"56,051.00 ",Council Tax for HUDDERSFIELD ROYAL INFIRMARY for 23/24,HD1 2NF
Families & Specialist Services,Pharmacy,11/10/2023,Healthcare From Commercial Sector,Pharm Gen,L Rowland & Company (Retail) Ltd,1800001207,"98,095.17",Rowlands Outpatient Pharmacy contract DISPENSING FEE,WA7 3DJ
Families & Specialist Services,Pharmacy,11/10/2023,Healthcare From Commercial Sector,Pharm Gen,L Rowland & Company (Retail) Ltd,1800001207,"819,309.03 ",Rowlands Outpatient Pharmacy Contract MEDICINES SPEND,WA7 3DJ
Balance Sheet,L2 Long Term Creditors,18/10/2023,Lease Liabilities under IFRS 16 > 1 year,Finance Leases,Landa Asset Management PLC,36914,"25,072.50 ",Beechwood Health Centre Rent for 23-24,NW1 3BG
Central Income,Central Income,04/10/2023,NHS England Income,Central Income,Locala Community Partnerships C.I.C.,A0015846,"43,541.22 ",COVID VACCINATION FUNDING 2023/24,WF17 5PW
Families & Specialist Services,Radiology,17/10/2023,Furniture And Fittings,Ct,Medispace B.V.,20230479,"30,784.12 ",Rental of cm050 ct scan box with canon prime 160 slice CT plus 2 radiographers to run the service 8am - 8pm 7days a week ,2712 PJ  The Netherlands
Pmu,Pmu,04/10/2023,Drugs,Pmu,Merck Life Science UK Limited,8281478977,"53,683.20 ",Pharmaceutical purchase,NG9 2JR
Families & Specialist Services,Radiology,04/10/2023,Imaging Equipment Purchases,Rad General,Mid Yorkshire Teaching NHS Trust,1600023744,"25,496.00 ",regional imaging collaborative sharing solution Qtr 1 ,WF1 4DG
Recharges,Recharges,25/10/2023,Healthcare From NHS Trusts,Recharges,Mid Yorkshire Teaching NHS Trust,1600024491,"372,358.08 ",Various services provided by agreement as per West Yorkshire Association of Acute Trusts agreed methodology,WF1 4DG
Pmu,Pmu,18/10/2023,Computer Software / License Fees,Pmu,NexSys Solutons Ltd,244699,877.80 ,BARTENDER LICENCE FEE,M50 2GL
Pmu,Pmu,18/10/2023,Computer Software / License Fees,Pmu,NexSys Solutons Ltd,244699,440.00 ,BARTENDER SUPPORT FEE,M50 2GL
Pmu,Pmu,18/10/2023,Computer Software / License Fees,Pmu,NexSys Solutons Ltd,244699,"1,753.40 ",Bespoke Support Fee,M50 2GL
Pmu,Pmu,18/10/2023,Computer Software / License Fees,Pmu,NexSys Solutons Ltd,244699,"1,753.40 ",Bespoke Licence Fee,M50 2GL
Pmu,Pmu,18/10/2023,Computer Software / License Fees,Pmu,NexSys Solutons Ltd,244699,572.02 ,K3 MODULES SUPPORT FEE,M50 2GL
Pmu,Pmu,18/10/2023,Computer Software / License Fees,Pmu,NexSys Solutons Ltd,244699,663.30 ,K3 MODULES LICENCE FEE,M50 2GL
Pmu,Pmu,18/10/2023,Computer Software / License Fees,Pmu,NexSys Solutons Ltd,244699,"4,000.99 ",SYSPRO SUPPORT FEE,M50 2GL
Pmu,Pmu,18/10/2023,Computer Software / License Fees,Pmu,NexSys Solutons Ltd,244699,"12,003.35 ",SYSPRO LICENCE FEE 501+8000 1 10-70 OS OCT 2_023,M50 2GL
Families & Specialist Services,Pathology,15/10/2023,Blood Products,Blood Sciences,NHS Blood And Transplant,7018132,"88,143.21 ",MONTHLY CONTRACT CHARGE BLOOD & COMPONENTS,LS15 7TW
Families & Specialist Services,Pathology,15/10/2023,Blood Products,Blood Sciences,NHS Blood And Transplant,7018133,"31,648.12 ",MONTHLY CONTRACT CHARGE BLOOD & COMPONENTS,LS15 7TW
Corporate Services,Quality,16/10/2023,Clinical Negligence,Quality,NHS Resolution,SICX413750,"843,190.75 ",Clinical Negligence provision,SW1W 9SZ
Families & Specialist Services,Womens,16/10/2023,Clinical Negligence,Womens Management,NHS Resolution,SICX413750,"20,948.60 ",Clinical Negligence provision,SW1W 9SZ
Corporate Services,Quality,16/10/2023,Insurance Costs,Quality,NHS Resolution,SICX413750,"904,894.45 ",Clinical Negligence provision,SW1W 9SZ
CHS Balance Sheet,Current Liabilities,04/10/2023,Non- NHS Trade Creditors < One Year,Other Creditors,NHS Supply Chain,1124147428,"121,296.21 ",Goods delivered week ending 01-Sep-2023,DE55 4QJ
CHS Balance Sheet,Current Liabilities,04/10/2023,Non- NHS Trade Creditors < One Year,Other Creditors,NHS Supply Chain,1124147428,"121,296.21 ",Goods delivered week ending 01-Sep-2023,DE55 4QJ
CHS Balance Sheet,Current Liabilities,04/10/2023,Non- NHS Trade Creditors < One Year,Other Creditors,NHS Supply Chain,1124147428,"121,296.21 ",Goods delivered week ending 01-Sep-2023,DE55 4QJ
CHS Balance Sheet,Current Liabilities,04/10/2023,Non- NHS Trade Creditors < One Year,Other Creditors,NHS Supply Chain,1124150503,"118,641.34 ",Goods delivered week ending 01-Sep-2023,DE55 4QJ
CHS Balance Sheet,Current Liabilities,06/10/2023,Non- NHS Trade Creditors < One Year,Other Creditors,NHS Supply Chain,1124153199,"133,659.07 ",Goods delivered week ending 08-Sep-2023,DE55 4QJ
CHS Balance Sheet,Current Liabilities,06/10/2023,Non- NHS Trade Creditors < One Year,Other Creditors,NHS Supply Chain,1124153199,"133,659.07 ",Goods delivered week ending 08-Sep-2023,DE55 4QJ
CHS Balance Sheet,Current Liabilities,06/10/2023,Non- NHS Trade Creditors < One Year,Other Creditors,NHS Supply Chain,1124153199,"133,659.07 ",Goods delivered week ending 08-Sep-2023,DE55 4QJ
CHS Balance Sheet,Current Liabilities,06/10/2023,Non- NHS Trade Creditors < One Year,Other Creditors,NHS Supply Chain,1124157835,"190,094.19 ",Goods delivered week ending 08-Sep-2023,DE55 4QJ
CHS Balance Sheet,Current Liabilities,13/10/2023,Non- NHS Trade Creditors < One Year,Other Creditors,NHS Supply Chain,1124159794,"125,912.47 ",Goods delivered week ending 15-Sep-2023,DE55 4QJ
CHS Balance Sheet,Current Liabilities,13/10/2023,Non- NHS Trade Creditors < One Year,Other Creditors,NHS Supply Chain,1124159794,"125,912.47 ",Goods delivered week ending 15-Sep-2023,DE55 4QJ
CHS Balance Sheet,Current Liabilities,13/10/2023,Non- NHS Trade Creditors < One Year,Other Creditors,NHS Supply Chain,1124161835,"200,251.16 ",Goods delivered week ending 15-Sep-2023,DE55 4QJ
CHS Balance Sheet,Current Liabilities,20/10/2023,Non- NHS Trade Creditors < One Year,Other Creditors,NHS Supply Chain,1124172075,"176,865.07 ",Goods delivered week ending 22-Sep-2023,DE55 4QJ
CHS Balance Sheet,Current Liabilities,20/10/2023,Non- NHS Trade Creditors < One Year,Other Creditors,NHS Supply Chain,1124172075,"176,865.07 ",Goods delivered week ending 22-Sep-2023,DE55 4QJ
CHS Balance Sheet,Current Liabilities,27/10/2023,Non- NHS Trade Creditors < One Year,Other Creditors,NHS Supply Chain,1124174736,"135,439.40 ",Goods delivered week ending 29-Sep-2023,DE55 4QJ
CHS Balance Sheet,Current Liabilities,27/10/2023,Non- NHS Trade Creditors < One Year,Other Creditors,NHS Supply Chain,1124174736,"135,439.40 ",Goods delivered week ending 29-Sep-2023,DE55 4QJ
CHS Balance Sheet,Current Liabilities,27/10/2023,Non- NHS Trade Creditors < One Year,Other Creditors,NHS Supply Chain,1124179187,"200,888.64 ",Goods delivered week ending 29-Sep-2023,DE55 4QJ
CHS Balance Sheet,Current Liabilities,27/10/2023,Non- NHS Trade Creditors < One Year,Other Creditors,NHS Supply Chain,1124179187,"200,888.64 ",Goods delivered week ending 29-Sep-2023,DE55 4QJ
CHS Estates,L2 Estates,01/11/2023,Med Surg Eqpt Mtce Contracts,Management Estates,NHS Supply Chain - Maintenance,2124003563,"26,820.46 ",Epiq Elite Ultrasound Maintenance Package,DE55 4QJ
CHS Estates,L2 Estates,13/10/2023,Med Surg Eqpt Mtce Contracts,Management Estates,NHS Supply Chain - Maintenance,2124004526,"34,796.90 ",Fully Comprehensive Maintenance Package for confirmed assets of FCR XG5000 readers and associated components.Agreement Commencing - 1st July 2023 - 30th June 2024,DE55 4QJ
Balance Sheet,L2 Current Assets,06/10/2023,Other Debtors < One Year,Other Debtors,Northumbria Healthcare NHS Foundation Trust,7510614064,"39,447.13 ",Fleet Solutions - leased vehicles,NE27 0QJ
Corporate Services,Finance,27/10/2023,Computer Software / License Fees,Finance,Northumbria Healthcare NHS Foundation Trust,7550006940,"23,965.90 ",Oracle Cloud Finance System monthly cost,NE27 0QJ
Balance Sheet,L2 Long Term Creditors,13/10/2023,Lease Liabilities under IFRS 16 > 1 year,Finance Leases,Pennine Property Partnership Llp,LINV59297,"227,979.60 ",Acre Mill Z Block Rent for 23-24,WA4 6HL
Corporate Services,Service Performance,13/10/2023,Contract : Other External,Properties,Pennine Property Partnership Llp,SINV3333,"54,195.17 ",Acre Mills Insurance for 23-24,WA4 6HL
Corporate Services,Service Performance,11/10/2023,Contract : Other External,Properties,Pennine Property Partnership Llp,SINV3872,"55,066.34 ",Acre Mills August 2023 Service Charges,WA4 6HL
Corporate Services,Service Performance,20/10/2023,Contract : Other External,Properties,Pennine Property Partnership Llp,SINV3914,"55,066.34 ",Acre Mills Service Charge Recharge - September 2023,WA4 6HL
Surgery & Anaesthetics,Surgical Divisional Support,18/10/2023,Healthcare From Commercial Sector,Support Services,Pioneer Healthcare Ltd,1222,"41,987.17 ",Insourcing Services,S10 5UB
Surgery & Anaesthetics,Surgical Divisional Support,18/10/2023,Healthcare From Commercial Sector,Support Services,Pioneer Healthcare Ltd,1345,"26,925.12 ",Insourcing Services,S10 5UB
Surgery & Anaesthetics,Surgical Divisional Support,18/10/2023,Healthcare From Commercial Sector,Support Services,Pioneer Healthcare Ltd,1346,"42,837.30 ",Insourcing Services,S10 5UB
Families & Specialist Services,Pathology,06/10/2023,Laboratory Bottles And Containers,Path General,Roche Diagnostics Ltd,6571775341,"88,862.23 ",Additonal Managed Service Contract extension for Roche POCT within CHFT POC01/04/2023 - 31/03/2024,RH15 9RY
Families & Specialist Services,Pathology,27/10/2023,Laboratory Bottles And Containers,Path General,Roche Diagnostics Ltd,6571800995,"88,862.23 ",Additonal Managed Service Contract extension for Roche POCT within CHFT POC01/04/2023 - 31/03/2024,RH15 9RY
Families & Specialist Services,Pathology,27/10/2023,Laboratory Test Kits,Cell Path,Roche Diagnostics Ltd,6571803224,"63,485.03 ",Roche managed service contract for Immunohistochemistry,RH15 9RY
Balance Sheet,L2 Current Assets,27/10/2023,Finished Processed Goods,Stock & Work In Progress,Roche Products Ltd,1322298907,"49,860.55 ",Pharmaceutical purchase,AL7 1TW
Balance Sheet,L2 Current Assets,27/10/2023,Finished Processed Goods,Stock & Work In Progress,Roche Products Ltd,1322298908,"33,288.00 ",Pharmaceutical purchase,AL7 1TW
Balance Sheet,L2 Current Assets,27/10/2023,Finished Processed Goods,Stock & Work In Progress,Roche Products Ltd,1322300261,"85,728.00 ",Pharmaceutical purchase,AL7 1TW
Balance Sheet,L2 Current Assets,27/10/2023,Finished Processed Goods,Stock & Work In Progress,Roche Products Ltd,1322300664,"33,288.00 ",Pharmaceutical purchase,AL7 1TW
Balance Sheet,L2 Current Assets,27/10/2023,Finished Processed Goods,Stock & Work In Progress,Roche Products Ltd,1322301464,"85,728.00 ",Pharmaceutical purchase,AL7 1TW
Balance Sheet,L2 Current Assets,27/10/2023,Finished Processed Goods,Stock & Work In Progress,Roche Products Ltd,1322301812,"34,195.08 ",Pharmaceutical purchase,AL7 1TW
Balance Sheet,L2 Current Assets,27/10/2023,Finished Processed Goods,Stock & Work In Progress,Roche Products Ltd,1322302736,"33,288.00 ",Pharmaceutical purchase,AL7 1TW
Surgery & Anaesthetics,Operating Services,27/10/2023,Computer Software / License Fees,Anaesthetics,Rotamap Ltd,5477,"11,750.00",CLWRota unsupervised anaesthetistsAnaesthetists e-rota system service for the period of 27th October 2023 to 26th October 2024 - C50626Quote: 5477For attention of Emma HeleyTo link with PO RWYF400080856,W1T 2AF
Surgery & Anaesthetics,Operating Services,27/10/2023,Computer Software / License Fees,Anaesthetics,Rotamap Ltd,5477,"10,105.00",CLWRota supervised anaesthetistsAnaesthetists e-rota systemservice for the period of 27th October 2023 to 26th October 2024 - C50626Quote: 5477For attention of Emma HeleyTo link with PO RWYF400080856,W1T 2AF
CHS Estates,L2 Estates,04/10/2023,Water,Estates Operations,Scottish Water Business Stream Ltd,9179817401/2452298,"39,002.95 ",Mains water and sewerage HUDDERSFIELD ROYAL INFIRMARY  PMU and Elland Equipment Stores,EH12 9DH
Balance Sheet,L2 Current Assets,20/10/2023,Finished Processed Goods,Stock & Work In Progress,Seqirus UK Ltd,9160153477,"29,820.00 ",Pharmaceutical purchase,SL6 8AA
CHS Facilities,L2 Facilities,27/10/2023,External Contracts : Laundry,Laundry,Synergy Health Managed Services Ltd,50001451,"99,984.84 ",LAUNDRY SERVICE CONTRACT ,WA9 5XH
Community Division,Community Management,06/10/2023,Contract : Other External,Admin And Management,The Phoenix Partnership (Leeds) Ltd,14645,"334,820.90 ",SystmOne Annual Licence Fee (01/04/2023 - 31/03/2024) Community  CHS and Palliative,LS18 5TN
Surgery & Anaesthetics,Head & Neck,27/10/2023,Interpreting Services,Audiology,TheBigWord Interpreting Services Limited,INV20276817,316.00 , Interpreting Services,LS12 6AB
Medical Division,Medical Specialities,27/10/2023,Interpreting Services,Cardiology,TheBigWord Interpreting Services Limited,INV20276817,149.22 , Interpreting Services,LS12 6AB
Community Division,Community Nursing,27/10/2023,Interpreting Services,Community Matrons,TheBigWord Interpreting Services Limited,INV20276817,276.74 , Interpreting Services,LS12 6AB
Families & Specialist Services,Childrens & Young Persons Services,27/10/2023,Interpreting Services,Community Paediatrics,TheBigWord Interpreting Services Limited,INV20276817,161.50 , Interpreting Services,LS12 6AB
Community Division,Community Therapies,27/10/2023,Interpreting Services,Ctr Therapies Outpatients,TheBigWord Interpreting Services Limited,INV20276817,"5,268.66 ", Interpreting Services,LS12 6AB
Medical Division,Acute Medical,27/10/2023,Interpreting Services,Diabetes Endocrinology,TheBigWord Interpreting Services Limited,INV20276817,249.25 , Interpreting Services,LS12 6AB
Surgery & Anaesthetics,Head & Neck,27/10/2023,Interpreting Services,Ent,TheBigWord Interpreting Services Limited,INV20276817,346.11 , Interpreting Services,LS12 6AB
Surgery & Anaesthetics,General Surgery,27/10/2023,Interpreting Services,General Surgery,TheBigWord Interpreting Services Limited,INV20276817,315.79 , Interpreting Services,LS12 6AB
Families & Specialist Services,Womens,27/10/2023,Interpreting Services,Gynaecology,TheBigWord Interpreting Services Limited,INV20276817,557.74 , Interpreting Services,LS12 6AB
Families & Specialist Services,Childrens & Young Persons Services,27/10/2023,Interpreting Services,Inpatients Paediatrics,TheBigWord Interpreting Services Limited,INV20276817,246.13 , Interpreting Services,LS12 6AB
Medical Division,Integrated Medical Specialities,27/10/2023,Interpreting Services,Medical Oncology,TheBigWord Interpreting Services Limited,INV20276817,207.54 , Interpreting Services,LS12 6AB
Medical Division,Integrated Medical Specialities,27/10/2023,Interpreting Services,Neuro Sciences,TheBigWord Interpreting Services Limited,INV20276817,66.73 , Interpreting Services,LS12 6AB
Families & Specialist Services,Womens,27/10/2023,Interpreting Services,Obstetrics,TheBigWord Interpreting Services Limited,INV20276817,"3,862.39 ", Interpreting Services,LS12 6AB
Surgery & Anaesthetics,Operating Services,27/10/2023,Interpreting Services,Operating Services,TheBigWord Interpreting Services Limited,INV20276817,"2,967.79 ", Interpreting Services,LS12 6AB
Surgery & Anaesthetics,Head & Neck,27/10/2023,Interpreting Services,Ophthalmology,TheBigWord Interpreting Services Limited,INV20276817,"1,642.01 ", Interpreting Services,LS12 6AB
Surgery & Anaesthetics,Head & Neck,27/10/2023,Interpreting Services,Oral Surgery,TheBigWord Interpreting Services Limited,INV20276817,160.24 , Interpreting Services,LS12 6AB
Families & Specialist Services,Outpatients & Records Services,27/10/2023,Interpreting Services,Outpatients Dept,TheBigWord Interpreting Services Limited,INV20276817,"1,516.73 ", Interpreting Services,LS12 6AB
Community Division,Community Therapies,27/10/2023,Interpreting Services,Paeds Physio / Ot,TheBigWord Interpreting Services Limited,INV20276817,284.82 , Interpreting Services,LS12 6AB
Community Division,Community Therapies,27/10/2023,Interpreting Services,Paeds Salt,TheBigWord Interpreting Services Limited,INV20276817,44.69 , Interpreting Services,LS12 6AB
Surgery & Anaesthetics,Critical Care,27/10/2023,Interpreting Services,Pain Management,TheBigWord Interpreting Services Limited,INV20276817,249.46 , Interpreting Services,LS12 6AB
Families & Specialist Services,Radiology,27/10/2023,Interpreting Services,Rad General,TheBigWord Interpreting Services Limited,INV20276817,"1,408.58 ", Interpreting Services,LS12 6AB
Medical Division,Medical Specialities,27/10/2023,Interpreting Services,Respiratory,TheBigWord Interpreting Services Limited,INV20276817,150.46 , Interpreting Services,LS12 6AB
Total Trust,Surgery & Anaesthetics,27/10/2023,Interpreting Services,Surgical Closed Cost Centres,TheBigWord Interpreting Services Limited,INV20276817,656.89 , Interpreting Services,LS12 6AB
Balance Sheet,Fixed Assets,06/10/2023,Additions - Assets Under Construction,Capital (Surgical),Topcon Great Britain Medical branch of Topcon Europe Medical B.V.,GBA-14083-2023,"68,000.00",Pascal synthesis Y4 (577nm) with SL-PA04Product: 42-0001688,RG14 5PX
Balance Sheet,Fixed Assets,06/10/2023,Additions - Assets Under Construction,Capital (Surgical),Topcon Great Britain Medical branch of Topcon Europe Medical B.V.,GBA-14083-2023,"7,000.00",Pascal HDMI single chip video cameraProduct 49-0000770,RG14 5PX
Balance Sheet,Fixed Assets,06/10/2023,Additions - Assets Under Construction,Capital (Surgical),Topcon Great Britain Medical branch of Topcon Europe Medical B.V.,GBA-14083-2023,"12,995.00",LIO for synthesis (577nm)Product: 408470004,RG14 5PX
CHS Estates,L2 Estates,13/10/2023,Gas,Estates Operations,TotalEnergies Gas & Power Ltd,314510663/23,"36,824.02 ",Mains Gas HUDDERSFIELD ROYAL INFIRMARY,RH1 1RX
Balance Sheet,L2 Current Assets,27/10/2023,Other Debtors < One Year,Other Debtors,Tuskerdirect Ltd,81287,"136,370.41 ",Salary Sacrifice cars,WD18 8YF
CHS Estates,L2 Estates,20/10/2023,Insurance Costs,Management Estates,Willis Ltd,11173GP23/000001PRM,"230,534.08 ",COMPANY INSURANCE TO COVER PERIOD 1 SEPTEMBER 2023 TO 31 AUGUST 2024.  ,EC3M 7DQ
Corporate Services,Finance,11/10/2023,Audit Fees : Internal,Finance,York and Scarborough Teaching Hospitals NHS Foundation Trust,1010090225,"38,007.00 ",2023/24 AUDIT AND COUNTER FRAUD CHARGES APRIL - JUNE 2023. ,YO30 4RY
Corporate Services,RAFT,20/10/2023,Ambulance Car Service,Central Operations Team CORP,Yorkshire Ambulance Service NHS Trust,2810034739,"53,056.50 ",Unscheduled Care Discharge Servicek,WF2 0XG
Corporate Services,Corporate Services,04/10/2023,External Consultancy Fees,Corporate Services,Yorkshire And Humber Ahsn Ltd,997,"36,000.00 ",Contribution to joint HCP & YHAHSN Innovation Programme for 2023/24,WF2 7BJ
Medical Division,Emergency Medicine,20/10/2023,B5 Agency Nursing,A&E Nursing,Your Nurse Ltd,EHCX70,"1,886.50 ",B5 Agency Nursing,E14 5RE
Surgery & Anaesthetics,General Surgery,20/10/2023,B5 Agency Nursing,Endoscopy,Your Nurse Ltd,EHCX70,468.00 ,B5 Agency Nursing,E14 5RE
Medical Division,Medical Specialities,20/10/2023,B5 Agency Nursing,Gastroenterology,Your Nurse Ltd,EHCX70,"3,316.67 ",B5 Agency Nursing,E14 5RE
Medical Division,Acute Medical,20/10/2023,B5 Agency Nursing,General Medicine,Your Nurse Ltd,EHCX70,"2,357.25 ",B5 Agency Nursing,E14 5RE
Surgery & Anaesthetics,General Surgery,20/10/2023,B5 Agency Nursing,General Surgery,Your Nurse Ltd,EHCX70,"1,417.50 ",B5 Agency Nursing,E14 5RE
Medical Division,Acute Medical,20/10/2023,B5 Agency Nursing,Geriatric Medicine,Your Nurse Ltd,EHCX70,"1,704.50 ",B5 Agency Nursing,E14 5RE
Medical Division,Integrated Medical Specialities,20/10/2023,B5 Agency Nursing,Ims Stroke / Rehabilitation,Your Nurse Ltd,EHCX70,"3,555.00 ",B5 Agency Nursing,E14 5RE
Medical Division,Integrated Medical Specialities,20/10/2023,B5 Agency Nursing,Medical Oncology,Your Nurse Ltd,EHCX70,"5,605.00 ",B5 Agency Nursing,E14 5RE
Medical Division,Medical Specialities,20/10/2023,B5 Agency Nursing,Respiratory,Your Nurse Ltd,EHCX70,"3,555.50 ",B5 Agency Nursing,E14 5RE
Surgery & Anaesthetics,Orthopaedics,20/10/2023,B5 Agency Nursing,Trauma & Orthopaedics,Your Nurse Ltd,EHCX70,842.50 ,B5 Agency Nursing,E14 5RE
Medical Division,Emergency Medicine,20/10/2023,B5 Agency Nursing,A&E Nursing,Your Nurse Ltd,EHCX72,"3,113.50 ",B5 Agency Nursing,E14 5RE
Corporate Services,RAFT,20/10/2023,B5 Agency Nursing,Central Operations Team CORP,Your Nurse Ltd,EHCX72,"1,750.00 ",B5 Agency Nursing,E14 5RE
Surgery & Anaesthetics,General Surgery,20/10/2023,B5 Agency Nursing,Endoscopy,Your Nurse Ltd,EHCX72,"1,757.50 ",B5 Agency Nursing,E14 5RE
Medical Division,Medical Specialities,20/10/2023,B5 Agency Nursing,Gastroenterology,Your Nurse Ltd,EHCX72,"1,377.00 ",B5 Agency Nursing,E14 5RE
Medical Division,Acute Medical,20/10/2023,B5 Agency Nursing,General Medicine,Your Nurse Ltd,EHCX72,"1,111.50 ",B5 Agency Nursing,E14 5RE
Surgery & Anaesthetics,General Surgery,20/10/2023,B5 Agency Nursing,General Surgery,Your Nurse Ltd,EHCX72,"2,004.00 ",B5 Agency Nursing,E14 5RE
Medical Division,Acute Medical,20/10/2023,B5 Agency Nursing,Geriatric Medicine,Your Nurse Ltd,EHCX72,"5,098.50 ",B5 Agency Nursing,E14 5RE
Medical Division,Integrated Medical Specialities,20/10/2023,B5 Agency Nursing,Ims Stroke / Rehabilitation,Your Nurse Ltd,EHCX72,"3,954.50 ",B5 Agency Nursing,E14 5RE
Medical Division,Integrated Medical Specialities,20/10/2023,B5 Agency Nursing,Medical Oncology,Your Nurse Ltd,EHCX72,"1,683.00 ",B5 Agency Nursing,E14 5RE
Medical Division,Medical Specialities,20/10/2023,B5 Agency Nursing,Respiratory,Your Nurse Ltd,EHCX72,"3,821.00 ",B5 Agency Nursing,E14 5RE
Surgery & Anaesthetics,Orthopaedics,20/10/2023,B5 Agency Nursing,Trauma & Orthopaedics,Your Nurse Ltd,EHCX72,859.50 ,B5 Agency Nursing,E14 5RE
Medical Division,Emergency Medicine,20/10/2023,B5 Agency Nursing,A&E Nursing,Your Nurse Ltd,EHCX73,888.00 ,B5 Agency Nursing,E14 5RE
Medical Division,Medical Specialities,20/10/2023,B5 Agency Nursing,Cardiology,Your Nurse Ltd,EHCX73,"6,974.49 ",B5 Agency Nursing,E14 5RE
Surgery & Anaesthetics,Critical Care,20/10/2023,B5 Agency Nursing,Critical Care,Your Nurse Ltd,EHCX73,"1,551.00 ",B5 Agency Nursing,E14 5RE
Medical Division,Medical Specialities,20/10/2023,B5 Agency Nursing,Gastroenterology,Your Nurse Ltd,EHCX73,"1,698.00 ",B5 Agency Nursing,E14 5RE
Medical Division,Acute Medical,20/10/2023,B5 Agency Nursing,General Medicine,Your Nurse Ltd,EHCX73,"3,489.00 ",B5 Agency Nursing,E14 5RE
Surgery & Anaesthetics,General Surgery,20/10/2023,B5 Agency Nursing,General Surgery,Your Nurse Ltd,EHCX73,"1,723.00 ",B5 Agency Nursing,E14 5RE
Medical Division,Acute Medical,20/10/2023,B5 Agency Nursing,Geriatric Medicine,Your Nurse Ltd,EHCX73,"10,567.50 ",B5 Agency Nursing,E14 5RE
Medical Division,Integrated Medical Specialities,20/10/2023,B5 Agency Nursing,Ims Stroke / Rehabilitation,Your Nurse Ltd,EHCX73,528.00 ,B5 Agency Nursing,E14 5RE
Families & Specialist Services,Childrens & Young Persons Services,20/10/2023,B5 Agency Nursing,Inpatients Paediatrics,Your Nurse Ltd,EHCX73,"11,932.00 ",B5 Agency Nursing,E14 5RE
Medical Division,Integrated Medical Specialities,20/10/2023,B5 Agency Nursing,Medical Oncology,Your Nurse Ltd,EHCX73,"5,039.50 ",B5 Agency Nursing,E14 5RE
Surgery & Anaesthetics,Operating Services,20/10/2023,B5 Agency Nursing,Operating Services,Your Nurse Ltd,EHCX73,"11,176.84 ",B5 Agency Nursing,E14 5RE
Medical Division,Medical Specialities,20/10/2023,B5 Agency Nursing,Respiratory,Your Nurse Ltd,EHCX73,"4,611.01 ",B5 Agency Nursing,E14 5RE
Surgery & Anaesthetics,Orthopaedics,20/10/2023,B5 Agency Nursing,Trauma & Orthopaedics,Your Nurse Ltd,EHCX73,"1,032.00 ",B5 Agency Nursing,E14 5RE
Medical Division,Emergency Medicine,13/10/2023,B5 Agency Nursing,A&E Nursing,Your Nurse Ltd,YNLX87,"1,346.00 ",B5 Agency Nursing,E14 5RE
Medical Division,Medical Specialities,13/10/2023,B5 Agency Nursing,Cardiology,Your Nurse Ltd,YNLX87,"5,485.50 ",B5 Agency Nursing,E14 5RE
Surgery & Anaesthetics,Critical Care,13/10/2023,B5 Agency Nursing,Critical Care,Your Nurse Ltd,YNLX87,387.50 ,B5 Agency Nursing,E14 5RE
Medical Division,Medical Specialities,13/10/2023,B5 Agency Nursing,Gastroenterology,Your Nurse Ltd,YNLX87,"3,933.00 ",B5 Agency Nursing,E14 5RE
Medical Division,Acute Medical,13/10/2023,B5 Agency Nursing,General Medicine,Your Nurse Ltd,YNLX87,422.00 ,B5 Agency Nursing,E14 5RE
Surgery & Anaesthetics,General Surgery,13/10/2023,B5 Agency Nursing,General Surgery,Your Nurse Ltd,YNLX87,"1,611.00 ",B5 Agency Nursing,E14 5RE
Medical Division,Acute Medical,13/10/2023,B5 Agency Nursing,Geriatric Medicine,Your Nurse Ltd,YNLX87,"3,503.50 ",B5 Agency Nursing,E14 5RE
Families & Specialist Services,Womens,13/10/2023,B5 Agency Nursing,Gynaecology,Your Nurse Ltd,YNLX87,"5,698.50 ",B5 Agency Nursing,E14 5RE
Medical Division,Integrated Medical Specialities,13/10/2023,B5 Agency Nursing,Ims Stroke / Rehabilitation,Your Nurse Ltd,YNLX87,910.50 ,B5 Agency Nursing,E14 5RE
Families & Specialist Services,Childrens & Young Persons Services,13/10/2023,B5 Agency Nursing,Inpatients Paediatrics,Your Nurse Ltd,YNLX87,"3,934.00 ",B5 Agency Nursing,E14 5RE
Medical Division,Integrated Medical Specialities,13/10/2023,B5 Agency Nursing,Medical Oncology,Your Nurse Ltd,YNLX87,"6,919.00 ",B5 Agency Nursing,E14 5RE
Surgery & Anaesthetics,Operating Services,13/10/2023,B5 Agency Nursing,Operating Services,Your Nurse Ltd,YNLX87,"5,225.67 ",B5 Agency Nursing,E14 5RE
Medical Division,Medical Specialities,13/10/2023,B5 Agency Nursing,Respiratory,Your Nurse Ltd,YNLX87,"2,298.50 ",B5 Agency Nursing,E14 5RE
Surgery & Anaesthetics,Orthopaedics,13/10/2023,B5 Agency Nursing,Trauma & Orthopaedics,Your Nurse Ltd,YNLX87,"2,073.00 ",B5 Agency Nursing,E14 5RE
Medical Division,Emergency Medicine,04/10/2023,B5 Agency Nursing,A&E Nursing,Your Nurse Ltd,YNLX88,422.00 ,B5 Agency Nursing,E14 5RE
Medical Division,Medical Specialities,04/10/2023,B5 Agency Nursing,Cardiology,Your Nurse Ltd,YNLX88,"2,751.50 ",B5 Agency Nursing,E14 5RE
Medical Division,Medical Specialities,04/10/2023,B5 Agency Nursing,Gastroenterology,Your Nurse Ltd,YNLX88,"4,548.00 ",B5 Agency Nursing,E14 5RE
Medical Division,Acute Medical,04/10/2023,B5 Agency Nursing,General Medicine,Your Nurse Ltd,YNLX88,"3,129.00 ",B5 Agency Nursing,E14 5RE
Surgery & Anaesthetics,General Surgery,04/10/2023,B5 Agency Nursing,General Surgery,Your Nurse Ltd,YNLX88,186.00 ,B5 Agency Nursing,E14 5RE
Medical Division,Acute Medical,04/10/2023,B5 Agency Nursing,Geriatric Medicine,Your Nurse Ltd,YNLX88,"4,700.47 ",B5 Agency Nursing,E14 5RE
Medical Division,Integrated Medical Specialities,04/10/2023,B5 Agency Nursing,Ims Stroke / Rehabilitation,Your Nurse Ltd,YNLX88,"7,381.51 ",B5 Agency Nursing,E14 5RE
Families & Specialist Services,Childrens & Young Persons Services,04/10/2023,B5 Agency Nursing,Inpatients Paediatrics,Your Nurse Ltd,YNLX88,"2,576.89 ",B5 Agency Nursing,E14 5RE
Surgery & Anaesthetics,Operating Services,04/10/2023,B5 Agency Nursing,Operating Services,Your Nurse Ltd,YNLX88,"2,039.50 ",B5 Agency Nursing,E14 5RE
Families & Specialist Services,Radiology,04/10/2023,B5 Agency Nursing,Rad General,Your Nurse Ltd,YNLX88,"6,359.67 ",B5 Agency Nursing,E14 5RE
Medical Division,Medical Specialities,04/10/2023,B5 Agency Nursing,Respiratory,Your Nurse Ltd,YNLX88,"9,265.50 ",B5 Agency Nursing,E14 5RE
Surgery & Anaesthetics,Orthopaedics,04/10/2023,B5 Agency Nursing,Trauma & Orthopaedics,Your Nurse Ltd,YNLX88,"3,390.50 ",B5 Agency Nursing,E14 5RE
Medical Division,Emergency Medicine,04/10/2023,B5 Agency Nursing,A&E Nursing,Your Nurse Ltd,YNLX89,"1,266.00 ",B5 Agency Nursing,E14 5RE
Medical Division,Medical Specialities,04/10/2023,B5 Agency Nursing,Cardiology,Your Nurse Ltd,YNLX89,937.00 ,B5 Agency Nursing,E14 5RE
Surgery & Anaesthetics,Critical Care,04/10/2023,B5 Agency Nursing,Critical Care,Your Nurse Ltd,YNLX89,"7,956.17 ",B5 Agency Nursing,E14 5RE
Surgery & Anaesthetics,Head & Neck,04/10/2023,B5 Agency Nursing,Ent,Your Nurse Ltd,YNLX89,"4,081.50 ",B5 Agency Nursing,E14 5RE
Medical Division,Medical Specialities,04/10/2023,B5 Agency Nursing,Gastroenterology,Your Nurse Ltd,YNLX89,440.00 ,B5 Agency Nursing,E14 5RE
Medical Division,Acute Medical,04/10/2023,B5 Agency Nursing,General Medicine,Your Nurse Ltd,YNLX89,"2,275.50 ",B5 Agency Nursing,E14 5RE
Surgery & Anaesthetics,General Surgery,04/10/2023,B5 Agency Nursing,General Surgery,Your Nurse Ltd,YNLX89,"2,925.00 ",B5 Agency Nursing,E14 5RE
Medical Division,Acute Medical,04/10/2023,B5 Agency Nursing,Geriatric Medicine,Your Nurse Ltd,YNLX89,"6,863.25 ",B5 Agency Nursing,E14 5RE
Medical Division,Integrated Medical Specialities,04/10/2023,B5 Agency Nursing,Ims Stroke / Rehabilitation,Your Nurse Ltd,YNLX89,"3,414.00 ",B5 Agency Nursing,E14 5RE
Families & Specialist Services,Childrens & Young Persons Services,04/10/2023,B5 Agency Nursing,Inpatients Paediatrics,Your Nurse Ltd,YNLX89,"2,890.00 ",B5 Agency Nursing,E14 5RE
Medical Division,Integrated Medical Specialities,04/10/2023,B5 Agency Nursing,Medical Oncology,Your Nurse Ltd,YNLX89,"4,538.83 ",B5 Agency Nursing,E14 5RE
Surgery & Anaesthetics,Operating Services,04/10/2023,B5 Agency Nursing,Operating Services,Your Nurse Ltd,YNLX89,"5,213.00 ",B5 Agency Nursing,E14 5RE
Medical Division,Medical Specialities,04/10/2023,B5 Agency Nursing,Respiratory,Your Nurse Ltd,YNLX89,"2,923.00 ",B5 Agency Nursing,E14 5RE
Surgery & Anaesthetics,Orthopaedics,04/10/2023,B5 Agency Nursing,Trauma & Orthopaedics,Your Nurse Ltd,YNLX89,"1,003.50 ",B5 Agency Nursing,E14 5RE
Medical Division,Emergency Medicine,04/10/2023,B5 Agency Nursing,A&E Nursing,Your Nurse Ltd,YNLX91,902.00 ,B5 Agency Nursing,E14 5RE
Medical Division,Medical Specialities,04/10/2023,B5 Agency Nursing,Cardiology,Your Nurse Ltd,YNLX91,"9,352.00 ",B5 Agency Nursing,E14 5RE
Surgery & Anaesthetics,Critical Care,04/10/2023,B5 Agency Nursing,Critical Care,Your Nurse Ltd,YNLX91,"1,027.50 ",B5 Agency Nursing,E14 5RE
Medical Division,Medical Specialities,04/10/2023,B5 Agency Nursing,Gastroenterology,Your Nurse Ltd,YNLX91,528.00 ,B5 Agency Nursing,E14 5RE
Medical Division,Acute Medical,04/10/2023,B5 Agency Nursing,General Medicine,Your Nurse Ltd,YNLX91,"2,118.00 ",B5 Agency Nursing,E14 5RE
Surgery & Anaesthetics,General Surgery,04/10/2023,B5 Agency Nursing,General Surgery,Your Nurse Ltd,YNLX91,"2,168.50 ",B5 Agency Nursing,E14 5RE
Medical Division,Acute Medical,04/10/2023,B5 Agency Nursing,Geriatric Medicine,Your Nurse Ltd,YNLX91,"10,314.00 ",B5 Agency Nursing,E14 5RE
Medical Division,Integrated Medical Specialities,04/10/2023,B5 Agency Nursing,Ims Stroke / Rehabilitation,Your Nurse Ltd,YNLX91,"2,934.00 ",B5 Agency Nursing,E14 5RE
Families & Specialist Services,Childrens & Young Persons Services,04/10/2023,B5 Agency Nursing,Inpatients Paediatrics,Your Nurse Ltd,YNLX91,"7,471.00 ",B5 Agency Nursing,E14 5RE
Medical Division,Integrated Medical Specialities,04/10/2023,B5 Agency Nursing,Medical Oncology,Your Nurse Ltd,YNLX91,"5,581.00 ",B5 Agency Nursing,E14 5RE
Surgery & Anaesthetics,Operating Services,04/10/2023,B5 Agency Nursing,Operating Services,Your Nurse Ltd,YNLX91,"4,306.00 ",B5 Agency Nursing,E14 5RE
Medical Division,Medical Specialities,04/10/2023,B5 Agency Nursing,Respiratory,Your Nurse Ltd,YNLX91,"2,629.00 ",B5 Agency Nursing,E14 5RE
Surgery & Anaesthetics,Orthopaedics,04/10/2023,B5 Agency Nursing,Trauma & Orthopaedics,Your Nurse Ltd,YNLX91,"2,046.00 ",B5 Agency Nursing,E14 5RE
Medical Division,Emergency Medicine,04/10/2023,B5 Agency Nursing,A&E Nursing,Your Nurse Ltd,YNLX92,422.00 ,B5 Agency Nursing,E14 5RE
Medical Division,Medical Specialities,04/10/2023,B5 Agency Nursing,Cardiology,Your Nurse Ltd,YNLX92,437.50 ,B5 Agency Nursing,E14 5RE
Surgery & Anaesthetics,Critical Care,04/10/2023,B5 Agency Nursing,Critical Care,Your Nurse Ltd,YNLX92,"9,095.50 ",B5 Agency Nursing,E14 5RE
Surgery & Anaesthetics,Head & Neck,04/10/2023,B5 Agency Nursing,Ent,Your Nurse Ltd,YNLX92,"4,537.50 ",B5 Agency Nursing,E14 5RE
Medical Division,Medical Specialities,04/10/2023,B5 Agency Nursing,Gastroenterology,Your Nurse Ltd,YNLX92,776.50 ,B5 Agency Nursing,E14 5RE
Medical Division,Acute Medical,04/10/2023,B5 Agency Nursing,General Medicine,Your Nurse Ltd,YNLX92,"4,006.50 ",B5 Agency Nursing,E14 5RE
Surgery & Anaesthetics,General Surgery,04/10/2023,B5 Agency Nursing,General Surgery,Your Nurse Ltd,YNLX92,"2,087.00 ",B5 Agency Nursing,E14 5RE
Medical Division,Acute Medical,04/10/2023,B5 Agency Nursing,Geriatric Medicine,Your Nurse Ltd,YNLX92,"5,944.50 ",B5 Agency Nursing,E14 5RE
Medical Division,Integrated Medical Specialities,04/10/2023,B5 Agency Nursing,Ims Stroke / Rehabilitation,Your Nurse Ltd,YNLX92,480.00 ,B5 Agency Nursing,E14 5RE
Families & Specialist Services,Childrens & Young Persons Services,04/10/2023,B5 Agency Nursing,Inpatients Paediatrics,Your Nurse Ltd,YNLX92,"4,605.00 ",B5 Agency Nursing,E14 5RE
Medical Division,Integrated Medical Specialities,04/10/2023,B5 Agency Nursing,Medical Oncology,Your Nurse Ltd,YNLX92,"3,396.31 ",B5 Agency Nursing,E14 5RE
Surgery & Anaesthetics,Operating Services,04/10/2023,B5 Agency Nursing,Operating Services,Your Nurse Ltd,YNLX92,"6,803.50 ",B5 Agency Nursing,E14 5RE
Medical Division,Medical Specialities,04/10/2023,B5 Agency Nursing,Respiratory,Your Nurse Ltd,YNLX92,"4,197.50 ",B5 Agency Nursing,E14 5RE
Surgery & Anaesthetics,Orthopaedics,04/10/2023,B5 Agency Nursing,Trauma & Orthopaedics,Your Nurse Ltd,YNLX92,"1,003.50 ",B5 Agency Nursing,E14 5RE
Medical Division,Emergency Medicine,13/10/2023,B5 Agency Nursing,A&E Nursing,Your Nurse Ltd,YNLX93,"1,874.50 ",B5 Agency Nursing,E14 5RE
Medical Division,Medical Specialities,13/10/2023,B5 Agency Nursing,Cardiology,Your Nurse Ltd,YNLX93,"6,305.84 ",B5 Agency Nursing,E14 5RE
Medical Division,Medical Specialities,13/10/2023,B5 Agency Nursing,Gastroenterology,Your Nurse Ltd,YNLX93,414.00 ,B5 Agency Nursing,E14 5RE
Medical Division,Acute Medical,13/10/2023,B5 Agency Nursing,General Medicine,Your Nurse Ltd,YNLX93,"2,070.00 ",B5 Agency Nursing,E14 5RE
Surgery & Anaesthetics,General Surgery,13/10/2023,B5 Agency Nursing,General Surgery,Your Nurse Ltd,YNLX93,438.00 ,B5 Agency Nursing,E14 5RE
Medical Division,Acute Medical,13/10/2023,B5 Agency Nursing,Geriatric Medicine,Your Nurse Ltd,YNLX93,"6,008.99 ",B5 Agency Nursing,E14 5RE
Families & Specialist Services,Womens,13/10/2023,B5 Agency Nursing,Gynaecology,Your Nurse Ltd,YNLX93,"1,683.00 ",B5 Agency Nursing,E14 5RE
Medical Division,Integrated Medical Specialities,13/10/2023,B5 Agency Nursing,Ims Stroke / Rehabilitation,Your Nurse Ltd,YNLX93,"8,202.75 ",B5 Agency Nursing,E14 5RE
Families & Specialist Services,Childrens & Young Persons Services,13/10/2023,B5 Agency Nursing,Inpatients Paediatrics,Your Nurse Ltd,YNLX93,869.75 ,B5 Agency Nursing,E14 5RE
Medical Division,Integrated Medical Specialities,13/10/2023,B5 Agency Nursing,Medical Oncology,Your Nurse Ltd,YNLX93,"7,253.17 ",B5 Agency Nursing,E14 5RE
Surgery & Anaesthetics,Operating Services,13/10/2023,B5 Agency Nursing,Operating Services,Your Nurse Ltd,YNLX93,"7,442.00 ",B5 Agency Nursing,E14 5RE
Medical Division,Medical Specialities,13/10/2023,B5 Agency Nursing,Respiratory,Your Nurse Ltd,YNLX93,"5,336.84 ",B5 Agency Nursing,E14 5RE
Surgery & Anaesthetics,Orthopaedics,13/10/2023,B5 Agency Nursing,Trauma & Orthopaedics,Your Nurse Ltd,YNLX93,"4,948.00 ",B5 Agency Nursing,E14 5RE
Medical Division,Emergency Medicine,13/10/2023,B5 Agency Nursing,A&E Nursing,Your Nurse Ltd,YNLX94,610.91 ,B5 Agency Nursing,E14 5RE
Medical Division,Medical Specialities,13/10/2023,B5 Agency Nursing,Cardiology,Your Nurse Ltd,YNLX94,"9,317.54 ",B5 Agency Nursing,E14 5RE
Corporate Services,RAFT,13/10/2023,B5 Agency Nursing,Central Operations Team CORP,Your Nurse Ltd,YNLX94,"1,056.00 ",B5 Agency Nursing,E14 5RE
Medical Division,Medical Specialities,13/10/2023,B5 Agency Nursing,Gastroenterology,Your Nurse Ltd,YNLX94,"1,522.50 ",B5 Agency Nursing,E14 5RE
Medical Division,Acute Medical,13/10/2023,B5 Agency Nursing,General Medicine,Your Nurse Ltd,YNLX94,"1,695.50 ",B5 Agency Nursing,E14 5RE
Surgery & Anaesthetics,General Surgery,13/10/2023,B5 Agency Nursing,General Surgery,Your Nurse Ltd,YNLX94,"5,113.50 ",B5 Agency Nursing,E14 5RE
Medical Division,Acute Medical,13/10/2023,B5 Agency Nursing,Geriatric Medicine,Your Nurse Ltd,YNLX94,"3,855.50 ",B5 Agency Nursing,E14 5RE
Families & Specialist Services,Womens,13/10/2023,B5 Agency Nursing,Gynaecology,Your Nurse Ltd,YNLX94,"5,166.75 ",B5 Agency Nursing,E14 5RE
Medical Division,Integrated Medical Specialities,13/10/2023,B5 Agency Nursing,Ims Stroke / Rehabilitation,Your Nurse Ltd,YNLX94,844.00 ,B5 Agency Nursing,E14 5RE
Families & Specialist Services,Childrens & Young Persons Services,13/10/2023,B5 Agency Nursing,Inpatients Paediatrics,Your Nurse Ltd,YNLX94,"6,168.55 ",B5 Agency Nursing,E14 5RE
Medical Division,Integrated Medical Specialities,13/10/2023,B5 Agency Nursing,Medical Oncology,Your Nurse Ltd,YNLX94,"7,197.17 ",B5 Agency Nursing,E14 5RE
Surgery & Anaesthetics,Operating Services,13/10/2023,B5 Agency Nursing,Operating Services,Your Nurse Ltd,YNLX94,"5,222.50 ",B5 Agency Nursing,E14 5RE
Medical Division,Medical Specialities,13/10/2023,B5 Agency Nursing,Respiratory,Your Nurse Ltd,YNLX94,"7,957.58 ",B5 Agency Nursing,E14 5RE
Surgery & Anaesthetics,Orthopaedics,13/10/2023,B5 Agency Nursing,Trauma & Orthopaedics,Your Nurse Ltd,YNLX94,466.50 ,B5 Agency Nursing,E14 5RE
Medical Division,Emergency Medicine,13/10/2023,B5 Agency Nursing,A&E Nursing,Your Nurse Ltd,YNLX95,610.91 ,B5 Agency Nursing,E14 5RE
Medical Division,Medical Specialities,13/10/2023,B5 Agency Nursing,Cardiology,Your Nurse Ltd,YNLX95,"7,358.10 ",B5 Agency Nursing,E14 5RE
Corporate Services,RAFT,13/10/2023,B5 Agency Nursing,Central Operations Team CORP,Your Nurse Ltd,YNLX95,990.00 ,B5 Agency Nursing,E14 5RE
Surgery & Anaesthetics,Critical Care,13/10/2023,B5 Agency Nursing,Critical Care,Your Nurse Ltd,YNLX95,"2,091.65 ",B5 Agency Nursing,E14 5RE
Medical Division,Medical Specialities,13/10/2023,B5 Agency Nursing,Gastroenterology,Your Nurse Ltd,YNLX95,"5,403.00 ",B5 Agency Nursing,E14 5RE
Medical Division,Acute Medical,13/10/2023,B5 Agency Nursing,General Medicine,Your Nurse Ltd,YNLX95,"2,254.00 ",B5 Agency Nursing,E14 5RE
Surgery & Anaesthetics,General Surgery,13/10/2023,B5 Agency Nursing,General Surgery,Your Nurse Ltd,YNLX95,"11,074.61 ",B5 Agency Nursing,E14 5RE
Medical Division,Acute Medical,13/10/2023,B5 Agency Nursing,Geriatric Medicine,Your Nurse Ltd,YNLX95,866.50 ,B5 Agency Nursing,E14 5RE
Medical Division,Integrated Medical Specialities,13/10/2023,B5 Agency Nursing,Ims Stroke / Rehabilitation,Your Nurse Ltd,YNLX95,"10,572.15 ",B5 Agency Nursing,E14 5RE
Families & Specialist Services,Childrens & Young Persons Services,13/10/2023,B5 Agency Nursing,Inpatients Paediatrics,Your Nurse Ltd,YNLX95,"11,050.00 ",B5 Agency Nursing,E14 5RE
Medical Division,Integrated Medical Specialities,13/10/2023,B5 Agency Nursing,Medical Oncology,Your Nurse Ltd,YNLX95,"7,039.50 ",B5 Agency Nursing,E14 5RE
Surgery & Anaesthetics,Operating Services,13/10/2023,B5 Agency Nursing,Operating Services,Your Nurse Ltd,YNLX95,"3,918.00 ",B5 Agency Nursing,E14 5RE
Medical Division,Medical Specialities,13/10/2023,B5 Agency Nursing,Respiratory,Your Nurse Ltd,YNLX95,"2,185.00 ",B5 Agency Nursing,E14 5RE
Surgery & Anaesthetics,Orthopaedics,13/10/2023,B5 Agency Nursing,Trauma & Orthopaedics,Your Nurse Ltd,YNLX95,"1,045.50 ",B5 Agency Nursing,E14 5RE
Medical Division,Emergency Medicine,20/10/2023,B5 Agency Nursing,A&E Nursing,Your Nurse Ltd,YNLX96,888.00 ,B5 Agency Nursing,E14 5RE
Medical Division,Medical Specialities,20/10/2023,B5 Agency Nursing,Cardiology,Your Nurse Ltd,YNLX96,"6,974.49 ",B5 Agency Nursing,E14 5RE
Surgery & Anaesthetics,Critical Care,20/10/2023,B5 Agency Nursing,Critical Care,Your Nurse Ltd,YNLX96,"1,551.00 ",B5 Agency Nursing,E14 5RE
Medical Division,Medical Specialities,20/10/2023,B5 Agency Nursing,Gastroenterology,Your Nurse Ltd,YNLX96,"1,698.00 ",B5 Agency Nursing,E14 5RE
Medical Division,Acute Medical,20/10/2023,B5 Agency Nursing,General Medicine,Your Nurse Ltd,YNLX96,"3,489.00 ",B5 Agency Nursing,E14 5RE
Surgery & Anaesthetics,General Surgery,20/10/2023,B5 Agency Nursing,General Surgery,Your Nurse Ltd,YNLX96,"1,723.00 ",B5 Agency Nursing,E14 5RE
Medical Division,Acute Medical,20/10/2023,B5 Agency Nursing,Geriatric Medicine,Your Nurse Ltd,YNLX96,"10,567.51 ",B5 Agency Nursing,E14 5RE
Medical Division,Integrated Medical Specialities,20/10/2023,B5 Agency Nursing,Ims Stroke / Rehabilitation,Your Nurse Ltd,YNLX96,528.00 ,B5 Agency Nursing,E14 5RE
Families & Specialist Services,Childrens & Young Persons Services,20/10/2023,B5 Agency Nursing,Inpatients Paediatrics,Your Nurse Ltd,YNLX96,"11,932.00 ",B5 Agency Nursing,E14 5RE
Medical Division,Integrated Medical Specialities,20/10/2023,B5 Agency Nursing,Medical Oncology,Your Nurse Ltd,YNLX96,"5,039.50 ",B5 Agency Nursing,E14 5RE
Surgery & Anaesthetics,Operating Services,20/10/2023,B5 Agency Nursing,Operating Services,Your Nurse Ltd,YNLX96,"11,176.84 ",B5 Agency Nursing,E14 5RE
Medical Division,Medical Specialities,20/10/2023,B5 Agency Nursing,Respiratory,Your Nurse Ltd,YNLX96,"4,611.00 ",B5 Agency Nursing,E14 5RE
Surgery & Anaesthetics,Orthopaedics,20/10/2023,B5 Agency Nursing,Trauma & Orthopaedics,Your Nurse Ltd,YNLX96,"1,032.00 ",B5 Agency Nursing,E14 5RE
